Workbook

Sheet Superpesis
B1: Saara Rantavaara | E1: 8.3.1960
B2: SUPERPESIS | E2: Runkosarja | I2: Kärkilyönnit (KL), pesänvälit | P2: Ylempi loppusarja | U2: Alempi loppusarja | Z2: Arvo-ottelut ja mitalit | AF2: Runkosarjan jälkeen
B3: Vuosi | C3: Sija | D3: Seura | E3: OTT | F3: KUN | G3: LÖI | H3: TOI | I3: KL | J3: 0 > 1 | K3: 1 > 2 | L3: 2 > 3 | M3: 3 > k | N3: KL-% | P3: OTT | Q3: KUN | R3: LÖI | S3: TOI | T3: KL | U3: OTT | V3: KUN | W3: LÖI | X3: TOI | Y3: KL | Z3: IL | AA3: LL | AB3: Halli | AC3: K | AD3: H | AE3: P
B4: 1976 | C4: 5.-6. | D4: Virkiä | E4: 1 | F4: 0 | G4: 0 | H4: 0
B5: 1977
B6: 1978 | C6: 1. | D6: Virkiä | E6: 2 | F6: 0 | G6: 1 | H6: 0 | AC6: 1
B7: 1979 | C7: 4. | D7: Virkiä | E7: 9 | F7: 0 | G7: 7 | H7: 2 | P7: 5 | Q7: 0 | R7: 2 | S7: 1 | AF7: loppusarja
B8: 1980 | C8: 4. | D8: Virkiä | E8: 10 | F8: 1 | G8: 10 | H8: 10 | P8: 6 | Q8: 0 | R8: 2 | S8: 1 | Z8: 1 | AF8: loppusarja
B9: 1981 | C9: 2. | D9: Virkiä | E9: 18 | F9: 0 | G9: 15 | H9: 12 | I9: 67 | J9: 10 | K9: 17 | L9: 25 | M9: 15 | N9: 56.3 % | O9: =PRODUCT(I9/N9) -> 119 | AD9: 1
B10: 1982 | C10: 5. | D10: Virkiä | E10: 18 | F10: 1 | G10: 12 | H10: 16 | I10: 65 | J10: 14 | K10: 21 | L10: 17 | M10: 13 | N10: 60.7 % | O10: 107
B11: 1983 | C11: 2. | D11: Virkiä | E11: 18 | F11: 0 | G11: 15 | H11: 8 | I11: 63 | J11: 12 | K11: 22 | L11: 14 | M11: 15 | N11: 66.3 % | O11: 95 | AD11: 1
B12: 1984 | C12: 7. | D12: Virkiä | E12: 17 | F12: 1 | G12: 7 | H12: 6 | I12: 43 | J12: 9 | K12: 9 | L12: 17 | M12: 8 | N12: 53.1 % | O12: 81
B13: 1985 | C13: 8. | D13: Virkiä | E13: 18 | F13: 0 | G13: 1 | H13: 10 | I13: 44 | J13: 11 | K13: 19 | L13: 13 | M13: 1 | N13: 56.4 % | O13: 78
B14: 1986 | C14: 5. | D14: VäVi | E14: 18 | F14: 1 | G14: 8 | H14: 14 | I14: 55 | J14: 17 | K14: 17 | L14: 12 | M14: 9 | N14: ---- | O14: 0
B15: 1987 | C15: 8. | D15: Virkiä | E15: 18 | F15: 0 | G15: 14 | H15: 12 | I15: 64 | J15: 10 | K15: 22 | L15: 18 | M15: =PRODUCT(F15+G15) -> 14 | N15: ---- | O15: 0
B16: 1988 | C16: 1. | D16: Virkiä | E16: 14 | F16: 0 | G16: 11 | H16: 5 | I16: 50 | J16: 6 | K16: 14 | L16: 19 | M16: =PRODUCT(F16+G16) -> 11 | N16: ---- | O16: 0 | AC16: 1 | AF16: loppuottelut
B17: 1989 | C17: 7. | D17: Virkiä | E17: 18 | F17: 2 | G17: 17 | H17: 13 | I17: 79 | J17: 14 | K17: 19 | L17: 27 | M17: =PRODUCT(F17+G17) -> 19 | N17: ---- | O17: 0
B18: 1990 | C18: 2. | D18: Virkiä | E18: 22 | F18: 4 | G18: 31 | H18: 19 | I18: 110 | J18: 22 | K18: 20 | L18: 33 | M18: 35 | N18: 56.9 % | O18: =PRODUCT(I18/N18) -> 193.3216169 | AD18: 1 | AF18: play off
B19: 1991 | C19: 3. | D19: Virkiä | E19: 21 | F19: 3 | G19: 19 | H19: 22 | I19: 84 | J19: 14 | K19: 20 | L19: 28 | M19: =SUM(F19+G19) -> 22 | N19: 52.5 % | O19: =PRODUCT(I19/N19) -> 160 | AE19: 1 | AF19: play off
B20: 1992 | C20: 10. | D20: YJ | E20: 22 | F20: 0 | G20: 16 | H20: 9 | I20: 69 | J20: 11 | K20: 18 | L20: 24 | M20: =SUM(F20+G20) -> 16 | N20: 52.7 % | O20: =PRODUCT(I20/N20) -> 130.9297913 | AF20: superpesiskarsinta
B21: 1993 | C21: 9. | D21: YJ | E21: 24 | F21: 2 | G21: 23 | H21: 13 | I21: 94 | J21: 20 | K21: 27 | L21: 22 | M21: 25 | N21: 51.5 % | O21: =PRODUCT(I21/N21) -> 182.5242718
B22: Yhteensä | E22: =SUM(E4:E21) -> 268 | F22: 15 | G22: 207 | H22: 171 | I22: 887 | J22: 170 | K22: 245 | L22: 269 | M22: 203 | N22: =PRODUCT(629/O22) -> 54.8 % | O22: =SUM(O9:O21) -> 1146.77568 | P22: =SUM(P4:P21) -> 11 | Q22: 0 | R22: 4 | S22: 2 | T22: 0 | U22: 0 | V22: 0 | W22: 0 | X22: 0 | Y22: 0 | Z22: 1 | AA22: 0 | AB22: 0 | AC22: 2 | AD22: 3 | AE22: 1
B23: Pesispörssi | D23: 856.0
B25: URA SUPERISSA | E25: OTT | F25: KUN | G25: LÖI | H25: TOI | I25: KL | K25: ka/L | L25: ka/T | M25: ka/KL | N25: K - % | P25: ENSIMMÄISET
B26: Runkosarja | E26: =PRODUCT(E22) -> 268 | F26: =PRODUCT(F22) -> 15 | G26: =PRODUCT(G22) -> 207 | H26: =PRODUCT(H22) -> 171 | I26: =PRODUCT(I22) -> 887 | K26: =PRODUCT((F26+G26)/E26) -> 0.83 | L26: =PRODUCT(H26/E26) -> 0.64 | M26: =PRODUCT(I26/E26) -> 3.31 | N26: =PRODUCT(N22) -> 54.8 % | O26: =PRODUCT(O22) -> 1146.77568 | P26: Ottelu | S26: 30.05. 1976 Ura - Virkiä 4-27 | AB26: 1. ottelu | AF26: 16 v 2 kk 22 pv
B27: Ylempi loppusarja | E27: =PRODUCT(P22) -> 11 | F27: =PRODUCT(Q22) -> 0 | G27: =PRODUCT(R22) -> 4 | H27: =PRODUCT(S22) -> 2 | I27: =PRODUCT(T22) -> 0 | K27: =PRODUCT((F27+G27)/E27) -> 0.36 | L27: =PRODUCT(H27/E27) -> 0.18 | P27: Lyöty juoksu | S27: 05.07. 1978 Kiri - Virkiä 4-16 | AB27: 3. ottelu | AF27: 18 v 4 kk 27 pv
B28: Alempi loppusarja | P28: Tuotu juoksu | S28: 27.05. 1979 Kri - Virkiä 10-15 | AB28: 4. ottelu | AF28: 19 v 2 kk 29 pv
B29: KAIKKI | E29: =SUM(E26:E28) -> 279 | F29: =SUM(F26:F28) -> 15 | G29: =SUM(G26:G28) -> 211 | H29: =SUM(H26:H28) -> 173 | I29: =SUM(I26:I28) -> 887 | K29: =PRODUCT((F29+G29)/E29) -> 0.81 | L29: =PRODUCT(H29/E29) -> 0.62 | M29: 3.28 | O29: =SUM(O26:O28) -> 1146.77568 | P29: Kunnari | S29: 29.06. 1980 Virkiä - IlU 18-9 | AB29: 24. ottelu | AF29: 20 v 3 kk 21 pv
B31: Seurat | D31: Virkiä = Lapuan Virkiä (1907)
D32: VäVi = Vähänkyrön Viesti (1938)
D33: YJ = Ylihärmän Junkkarit (1909)

Sheet Arvo-ottelut
B1: ITÄ - LÄNSI - KORTTI
B2: Saara Rantavaara | C2: 8.3.1960
B3: NAISET | C3: Itä - Länsi, tulos | D3: Joukkue | E3: Seura | G3: V | H3: T | I3: H | J3: Up. | K3: Lj. | L3: Palk. | M3: O | N3: K | O3: L | P3: T | Q3: KL | R3: 1 | S3: 2 | T3: 3 | U3: k | V3: KL-% | W3: Pelinjohtaja | X3: Yleisöä
B4: 20.07. 1980 Lapua | C4: 6-5 | D4: Länsi | E4: Virkiä | I4: 1 | K4: vai | M4: 1 | W4: Paavo Lakaniemi | X4: 500
B5: Ikä ensimmäisessä ottelussa | C5: 20 v 4 kk 12 pv
